Workbook

Sheet NCAA
E1: NCAA Pool History (1986-2025)
B2: Total $: | D2: =SUM(F2:AQ2) -> 73252.6 | E2: =2360 -> 2360 | F2: 2475 | G2: 2275 | H2: 2425 | I2: 2845 | J2: 3060 | K2: =SUM(K5:K251) -> 3000 | L2: 2930 | M2: 2735 | N2: 2875 | O2: 3220 | P2: 3045 | Q2: 2930 | R2: 3040 | S2: 2595 | T2: 2390 | U2: 2605 | V2: 2515 | W2: 2400 | X2: 2130 | Y2: 1700 | Z2: 1475 | AA2: 1220 | AB2: 1125 | AC2: 1120 | AD2: 1125 | AE2: 1195 | AF2: 1155 | AG2: 1315 | AH2: 2526 | AI2: 2070.5 | AJ2: 1627.1 | AK2: 1320 | AL2: 1005 | AM2: 785 | AN2: 515 | AO2: 270 | AP2: 156 | AQ2: 58
B3: # Entries: | D3: =SUM(F3:AQ3) -> 14724 | E3: 472 | F3: 495 | G3: 455 | H3: 485 | I3: 569 | J3: 612 | K3: 600 | L3: 586 | M3: 547 | N3: 575 | O3: 644 | P3: 609 | Q3: 586 | R3: 608 | S3: 519 | T3: 478 | U3: 521 | V3: 503 | W3: 480 | X3: 426 | Y3: 340 | Z3: 295 | AA3: 244 | AB3: 225 | AC3: 224 | AD3: 225 | AE3: 239 | AF3: 231 | AG3: 263 | AH3: 505 | AI3: 414 | AJ3: 325 | AK3: 264 | AL3: 201 | AM3: 157 | AN3: 103 | AO3: 90 | AP3: 52 | AQ3: 29
A4: Pos | B4: Past Cashers (Past Winners Highlighted) | C4: # Yrs Cashed | D4: Ttl $ | E4: 25 | F4: 24 | G4: 23 | H4: 22 | I4: 21 | J4: 19 | K4: 18 | L4: 17 | M4: 16 | N4: 15 | O4: 14 | P4: 13 | Q4: 12 | R4: 11 | S4: '10 | T4: '09 | U4: '08 | V4: '07 | W4: '06 | X4: '05 | Y4: '04 | Z4: '03 | AA4: '02 | AB4: '01 | AC4: '00 | AD4: '99 | AE4: '98 | AF4: '97 | AG4: '96 | AH4: '95 | AI4: '94 | AJ4: '93 | AK4: '92 | AL4: '91 | AM4: '90 | AN4: '89 | AO4: '88 | AP4: '87 | AQ4: '86
A5: 1 | B5: Forrest, Kevin | C5: =COUNT(E5:AQ5) -> 8 | D5: =SUM(E5:AQ5) -> 2032.5 | E5: 275 | N5: 200 | U5: 615 | X5: 120 | Y5: 120 | AA5: 280 | AB5: 365 | AC5: 57.5
A6: =IF(D6=D5,"""",ROW(A6)-ROW($A$4)) -> 2 | B6: Efing, Todd | C6: =COUNT(E6:AQ6) -> 5 | D6: =SUM(E6:AQ6) -> 2015 | L6: 100 | N6: 525 | R6: 1050 | T6: 130 | Z6: 210
A7: =IF(D7=D6,"""",ROW(A7)-ROW($A$4)) -> 3 | B7: Osier, Keith | C7: =COUNT(E7:AQ7) -> 9 | D7: =SUM(E7:AQ7) -> 1880 | G7: 405 | H7: 400 | I7: 190 | J7: 200 | O7: 100 | W7: 300 | AG7: 65 | AH7: 95 | AL7: 125
A8: 4 | B8: Heidt, Tom | C8: =COUNT(E8:AQ8) -> 11 | D8: =SUM(E8:AQ8) -> 1659.5 | F8: 400 | P8: 130 | S8: 105 | W8: 425 | AA8: 35 | AC8: 237.5 | AF8: 34 | AG8: 138 | AH8: 53 | AL8: 55 | AP8: 47
A9: 5 | B9: Osier, John | C9: =COUNT(E9:AQ9) -> 8 | D9: =SUM(E9:AQ9) -> 1585 | J9: 600 | M9: 125 | O9: 325 | R9: 100 | Y9: 50 | Z9: 200 | AG9: 105 | AM9: 80
A10: 6 | B10: Regan, Tom | C10: =COUNT(E10:AQ10) -> 4 | D10: =SUM(E10:AQ10) -> 1470 | I10: 300 | L10: 615 | S10: 455 | V10: 100
A11: 7 | B11: Cole, John | C11: =COUNT(E11:AQ11) -> 7 | D11: =SUM(E11:AQ11) -> 1463 | K11: 400 | O11: 238 | S11: 100 | U11: 30 | V11: 300 | W11: 120 | X11: 275
A12: 8 | B12: Olmstead, Gary | C12: =COUNT(E12:AQ12) -> 6 | D12: =SUM(E12:AQ12) -> 1358 | P12: 400 | U12: 275 | W12: 175 | Z12: 260 | AH12: 53 | AI12: 195
A13: 9 | B13: Cupelli, Tony | C13: =COUNT(E13:AQ13) -> 2 | D13: =SUM(E13:AQ13) -> 1243 | I13: 400 | K13: 843
A14: 10 | B14: Burr, Mike | C14: =COUNT(E14:AQ14) -> 8 | D14: =SUM(E14:AQ14) -> 1182 | M14: 100 | P14: 100 | Q14: 100 | T14: 78 | U14: 200 | AA14: 95 | AF14: 175 | AH14: 334
A15: 11 | B15: Salisbury, Doug | C15: =COUNT(E15:AQ15) -> 7 | D15: =SUM(E15:AQ15) -> 1171 | F15: 213 | L15: 100 | N15: 350 | Q15: 100 | T15: 78 | V15: 240 | X15: 90
A16: 12 | B16: Garcia, Jon | C16: =COUNT(E16:AQ16) -> 1 | D16: =SUM(E16:AQ16) -> 1147 | M16: 1147
A17: 13 | B17: Scibetta, Pat | C17: =COUNT(E17:AQ17) -> 1 | D17: =SUM(E17:AQ17) -> 1085 | H17: 1085
A18: 14 | B18: Zoltoski, Todd | C18: =COUNT(E18:AQ18) -> 6 | D18: =SUM(E18:AQ18) -> 1073 | F18: 275 | G18: 300 | T18: 155 | U18: 110 | V18: 100 | AJ18: 133
A19: 15 | B19: Osier, Tim | C19: =COUNT(E19:AQ19) -> 6 | D19: =SUM(E19:AQ19) -> 1025.5 | K19: 200 | P19: 180 | Q19: 175 | T19: 403 | AC19: 57.5 | AI19: 10
A20: 16 | B20: Maines, Danny | C20: =COUNT(E20:AQ20) -> 2 | D20: =SUM(E20:AQ20) -> 974 | G20: 190 | J20: 784
A21: 17 | B21: Olmstead, Todd | C21: =COUNT(E21:AQ21) -> 4 | D21: =SUM(E21:AQ21) -> 935 | J21: 350 | Q21: 275 | Y21: 65 | AJ21: 245
A22: 18 | B22: Browne, Dave | C22: =COUNT(E22:AQ22) -> 4 | D22: =SUM(E22:AQ22) -> 928 | E22: 550 | K22: 138 | U22: 30 | V22: 210
A23: 19 | B23: Zoltoski, Brynn | C23: =COUNT(E23:AQ23) -> 2 | D23: =SUM(E23:AQ23) -> 915 | L23: 515 | R23: 400
A24: 20 | B24: Burr, Jeff | C24: =COUNT(E24:AQ24) -> 5 | D24: =SUM(E24:AQ24) -> 909 | AA24: 325 | AB24: 75 | AE24: 175 | AH24: 214 | AK24: 120
A25: 21 | B25: Didas, Cody | C25: =COUNT(E25:AQ25) -> 3 | D25: =SUM(E25:AQ25) -> 885 | G25: 635 | R25: 130 | V25: 120
A26: 22 | B26: Panella, Sean | C26: =COUNT(E26:AQ26) -> 2 | D26: =SUM(E26:AQ26) -> 845 | F26: 607 | K26: 238
A27: 23 | B27: Popielarz, Dave | C27: =COUNT(E27:AQ27) -> 4 | D27: =SUM(E27:AQ27) -> 838 | J27: 113 | U27: 180 | V27: 435 | Z27: 110
A28: 24 | B28: Jerome, Scott | C28: =COUNT(E28:AQ28) -> 3 | D28: =SUM(E28:AQ28) -> 806 | E28: 275 | K28: 281 | W28: 250
A29: 25 | B29: Roesch, Dorothy | C29: =COUNT(E29:AQ29) -> 1 | D29: =SUM(E29:AQ29) -> 765 | I29: 765
A30: 26 | B30: Byrne, Frank | C30: =COUNT(E30:AQ30) -> 4 | D30: =SUM(E30:AQ30) -> 755 | Q30: 275 | S30: 350 | AB30: 75 | AL30: 55
A31: 27 | B31: Annesi, Joe | C31: =COUNT(E31:AQ31) -> 4 | D31: =SUM(E31:AQ31) -> 735 | E31: 100 | O31: 325 | T31: 200 | U31: 110
A32: 28 | B32: Petrarca, Paul | C32: =COUNT(E32:AQ32) -> 4 | D32: =SUM(E32:AQ32) -> 728 | L32: 325 | AA32: 95 | AE32: 228 | AH32: 80
A33: 29 | B33: Fairland, Deb | C33: =COUNT(E33:AQ33) -> 2 | D33: =SUM(E33:AQ33) -> 704 | E33: 585 | Q33: 119
A34: 30 | B34: Stein, Mark | C34: =COUNT(E34:AQ34) -> 2 | D34: =SUM(E34:AQ34) -> 700 | O34: 400 | AK34: 300
A35: 31 | B35: Britt, Mark | C35: =COUNT(E35:AQ35) -> 3 | D35: =SUM(E35:AQ35) -> 675 | G35: 400 | I35: 100 | K35: 175
A36: 32 | B36: Freret, Norm | C36: =COUNT(E36:AQ36) -> 2 | D36: =SUM(E36:AQ36) -> 668 | O36: 568 | W36: 100
A37: 33 | B37: Knight, Jason | C37: =COUNT(E37:AQ37) -> 1 | D37: =SUM(E37:AQ37) -> 645 | P37: 645
A38: 34 | B38: Reimer, Jay | C38: =COUNT(E38:AQ38) -> 3 | D38: =SUM(E38:AQ38) -> 625 | S38: 100 | Y38: 475 | Z38: 50
A39: 35 | B39: Mosher, Matt | C39: =COUNT(E39:AQ39) -> 4 | D39: =SUM(E39:AQ39) -> 619 | Q39: 119 | X39: 375 | Y39: 65 | Z39: 60
A40: 36 | B40: Dillon, Pat | C40: =COUNT(E40:AQ40) -> 3 | D40: =SUM(E40:AQ40) -> 613 | I40: 100 | J40: 113 | N40: 400
A41: 37 | B41: Goodman, Paul | C41: =COUNT(E41:AQ41) -> 2 | D41: =SUM(E41:AQ41) -> 600 | I41: 300 | J41: 300
A42: " | B42: Lennon, Mark | C42: =COUNT(E42:AQ42) -> 2 | D42: =SUM(E42:AQ42) -> 600 | L42: 250 | M42: 350
A43: 39 | B43: Devore, Nick | C43: =COUNT(E43:AQ43) -> 4 | D43: =SUM(E43:AQ43) -> 580 | T43: 405 | U43: 110 | Z43: 10 | AB43: 55
A44: 40 | B44: Didas, Pat | C44: =COUNT(E44:AQ44) -> 4 | D44: =SUM(E44:AQ44) -> 569 | I44: 100 | Q44: 119 | S44: 140 | V44: 210
A45: 41 | B45: Annesi-Stott, Pat | C45: =COUNT(E45:AQ45) -> 1 | D45: =SUM(E45:AQ45) -> 525 | K45: 525
A46: 42 | B46: Ricci, Dan | C46: =COUNT(E46:AQ46) -> 3 | D46: =SUM(E46:AQ46) -> 523 | H46: 170 | P46: 275 | T46: 78
A47: " | B47: Smith, Jerry | C47: =COUNT(E47:AQ47) -> 2 | D47: =SUM(E47:AQ47) -> 523 | F47: 123 | M47: 400
A48: 44 | B48: Rodrigues, Manny | C48: =COUNT(E48:AQ48) -> 3 | D48: =SUM(E48:AQ48) -> 515 | S48: 275 | U48: 150 | X48: 90
A49: 45 | B49: Annesi, Mark | C49: =COUNT(E49:AQ49) -> 1 | D49: =SUM(E49:AQ49) -> 503 | Q49: 503
A50: 46 | B50: Pilaroscia, Rocky | C50: =COUNT(E50:AQ50) -> 3 | D50: =SUM(E50:AQ50) -> 480 | AH50: 95 | AJ50: 285 | AN50: 100
A51: 47 | B51: Dzwigal, Mo | C51: =COUNT(E51:AQ51) -> 3 | D51: =SUM(E51:AQ51) -> 453 | AC51: 200 | AH51: 53 | AM51: 200
A52: 48 | B52: Tirrell, Jim | C52: =COUNT(E52:AQ52) -> 2 | D52: =SUM(E52:AQ52) -> 450 | P52: 350 | V52: 100
A53: 49 | B53: Mercer, Chris | C53: =COUNT(E53:AQ53) -> 2 | D53: =SUM(E53:AQ53) -> 428 | I53: 190 | O53: 238
A54: 50 | B54: McCormick, Matt | C54: =COUNT(E54:AQ54) -> 2 | D54: =SUM(E54:AQ54) -> 426 | L54: 213 | Q54: 213
A55: 51 | B55: Moore, Mike | C55: =COUNT(E55:AQ55) -> 4 | D55: =SUM(E55:AQ55) -> 420.5 | L55: 213 | U55: 30 | Y55: 80 | AC55: 97.5
A56: 52 | B56: Iannopollo, Rocco | C56: =COUNT(E56:AQ56) -> 2 | D56: =SUM(E56:AQ56) -> 413 | F56: 213 | N56: 200
A57: 53 | B57: Malta, Matt | C57: =COUNT(E57:AQ57) -> 2 | D57: =SUM(E57:AQ57) -> 410 | U57: 275 | W57: 135
A58: " | B58: Tauer, Jack | C58: =COUNT(E58:AQ58) -> 3 | D58: =SUM(E58:AQ58) -> 410 | R58: 275 | S58: 105 | U58: 30
A59: 55 | B59: Lyons, Carolyn | C59: =COUNT(E59:AQ59) -> 1 | D59: =SUM(E59:AQ59) -> 400 | Q59: 400
A60: 56 | B60: Heidt, Pat | C60: =COUNT(E60:AQ60) -> 2 | D60: =SUM(E60:AQ60) -> 385 | E60: 275 | T60: 110
A61: " | B61: Mosher-Nozzi, Leah | C61: =COUNT(E61:AQ61) -> 2 | D61: =SUM(E61:AQ61) -> 385 | S61: 175 | V61: 210
A62: 58 | B62: Wheeler, Chuck | C62: =COUNT(E62:AQ62) -> 3 | D62: =SUM(E62:AQ62) -> 377.5 | AC62: 97.5 | AH62: 25 | AL62: 255
A63: 59 | B63: Bolt, Jim | C63: =COUNT(E63:AQ63) -> 3 | D63: =SUM(E63:AQ63) -> 371.7 | S63: 120 | AE63: 235 | AJ63: 16.7
A64: 60 | B64: Templeton, Jim | C64: =COUNT(E64:AQ64) -> 3 | D64: =SUM(E64:AQ64) -> 365 | U64: 30 | Y64: 175 | AC64: 160
A65: 61 | B65: Lee, Tom | C65: =COUNT(E65:AQ65) -> 3 | D65: =SUM(E65:AQ65) -> 357 | Z65: 110 | AH65: 64 | AI65: 183
A66: 62 | B66: Parsons, John | C66: =COUNT(E66:AQ66) -> 2 | D66: =SUM(E66:AQ66) -> 355 | AJ66: 300 | AO66: 55
A67: " | B67: Stein, Nate | C67: =COUNT(E67:AQ67) -> 3 | D67: =SUM(E67:AQ67) -> 355 | J67: 150 | L67: 100 | X67: 105
A68: 64 | B68: Levandowski, Carl | C68: =COUNT(E68:AQ68) -> 5 | D68: =SUM(E68:AQ68) -> 344 | AF68: 60 | AH68: 64 | AK68: 70 | AL68: 90 | AM68: 60
A69: 65 | B69: Cygan, Bill | C69: =COUNT(E69:AQ69) -> 2 | D69: =SUM(E69:AQ69) -> 338 | O69: 238 | Q69: 100
A70: 66 | B70: Olmstead, Rob | C70: =COUNT(E70:AQ70) -> 2 | D70: =SUM(E70:AQ70) -> 335 | P70: 275 | R70: 60
A71: =IF(D71=D70,"""",ROW(A71)-ROW($A$4)) -> 67 | B71: DiPaola, S. | C71: =COUNT(E71:AQ71) -> 3 | D71: =SUM(E71:AQ71) -> 333 | X71: 150 | Y71: 50 | AJ71: 133
A72: 68 | B72: Mastromatteo, Adam | C72: =COUNT(E72:AQ72) -> 2 | D72: =SUM(E72:AQ72) -> 330 | N72: 200 | P72: 130
A73: 69 | B73: Monroe, Margaret | C73: =COUNT(E73:AQ73) -> 2 | D73: =SUM(E73:AQ73) -> 326 | AF73: 226 | AK73: 100
A74: 70 | B74: Harris, John | C74: =COUNT(E74:AQ74) -> 1 | D74: =SUM(E74:AQ74) -> 325 | L74: 325
A75: 71 | B75: Sorensen, Pete | C75: =COUNT(E75:AQ75) -> 2 | D75: =SUM(E75:AQ75) -> 305 | AK75: 225 | AN75: 80
A76: 72 | B76: Brindle, Todd | C76: =COUNT(E76:AQ76) -> 2 | D76: =SUM(E76:AQ76) -> 300 | E76: 100 | X76: 200
A77: " | B77: Ebert, Karl | C77: =COUNT(E77:AQ77) -> 1 | D77: =SUM(E77:AQ77) -> 300 | AH77: 300
A78: " | B78: Haley, Dan | C78: =COUNT(E78:AQ78) -> 1 | D78: =SUM(E78:AQ78) -> 300 | M78: 300
A79: " | B79: Kauffman, Greg | C79: =COUNT(E79:AQ79) -> 1 | D79: =SUM(E79:AQ79) -> 300 | W79: 300
A80: " | B80: Pietrantoni, Philip | C80: =COUNT(E80:AQ80) -> 1 | D80: =SUM(E80:AQ80) -> 300 | T80: 300
A81: " | B81: Reulbach, Mark | C81: =COUNT(E81:AQ81) -> 1 | D81: =SUM(E81:AQ81) -> 300 | N81: 300
A82: " | B82: Seitzinger, Nick | C82: =COUNT(E82:AQ82) -> 1 | D82: =SUM(E82:AQ82) -> 300 | I82: 300
A83: 79 | B83: D'Agostino, Sam | C83: =COUNT(E83:AQ83) -> 3 | D83: =SUM(E83:AQ83) -> 295 | AD83: 125 | AE83: 60 | AI83: 110
A84: " | B84: Rath, Matt | C84: =COUNT(E84:AQ84) -> 3 | D84: =SUM(E84:AQ84) -> 295 | P84: 160 | Z84: 80 | AB84: 55
A85: 81 | B85: Dionise, Pam | C85: =COUNT(E85:AQ85) -> 2 | D85: =SUM(E85:AQ85) -> 293 | N85: 200 | AF85: 93
A86: 82 | B86: Levy, Jay | C86: =COUNT(E86:AQ86) -> 2 | D86: =SUM(E86:AQ86) -> 275 | L86: 175 | O86: 100
A87: " | B87: Sawyer, Chris | C87: =COUNT(E87:AQ87) -> 1 | D87: =SUM(E87:AQ87) -> 275 | F87: 275
A88: 84 | B88: Burg, Bill | C88: =COUNT(E88:AQ88) -> 1 | D88: =SUM(E88:AQ88) -> 270 | AI88: 270
A89: " | B89: Hamlin, Tom | C89: =COUNT(E89:AQ89) -> 1 | D89: =SUM(E89:AQ89) -> 270 | AD89: 270
A90: 86 | B90: Murray, Jim | C90: =COUNT(E90:AQ90) -> 1 | D90: =SUM(E90:AQ90) -> 254 | AG90: 254
A91: 87 | B91: Guy, Gavin | C91: =COUNT(E91:AQ91) -> 1 | D91: =SUM(E91:AQ91) -> 250 | N91: 250
A92: " | B92: Mosher, Lew | C92: =COUNT(E92:AQ92) -> 2 | D92: =SUM(E92:AQ92) -> 250 | O92: 150 | Q92: 100
A93: " | B93: Pellitier, Terese | C93: =COUNT(E93:AQ93) -> 1 | D93: =SUM(E93:AQ93) -> 250 | J93: 250
A94: " | B94: Seeb, Mark | C94: =COUNT(E94:AQ94) -> 1 | D94: =SUM(E94:AQ94) -> 250 | AB94: 250
A95: 91 | B95: Leslie, Doug | C95: =COUNT(E95:AQ95) -> 2 | D95: =SUM(E95:AQ95) -> 240 | W95: 100 | Y95: 140
A96: " | B96: Maines, Cheri | C96: =COUNT(E96:AQ96) -> 2 | D96: =SUM(E96:AQ96) -> 240 | O96: 150 | AD96: 90
A97: " | B97: Zoltoski, Paul | C97: =COUNT(E97:AQ97) -> 2 | D97: =SUM(E97:AQ97) -> 240 | U97: 30 | V97: 210
A98: 94 | B98: DiPietro, Larry | C98: =COUNT(E98:AQ98) -> 1 | D98: =SUM(E98:AQ98) -> 238 | O98: 238
A99: 95 | B99: Dettore, Don | C99: =COUNT(E99:AQ99) -> 3 | D99: =SUM(E99:AQ99) -> 235 | AF99: 70 | AH99: 155 | AI99: 10
A100: 96 | B100: Schmitz, Al | C100: =COUNT(E100:AQ100) -> 1 | D100: =SUM(E100:AQ100) -> 230 | R100: 230
A101: " | B101: Welshoff, Jerry | C101: =COUNT(E101:AQ101) -> 2 | D101: =SUM(E101:AQ101) -> 230 | V101: 120 | W101: 110
A102: 98 | B102: Annesi, Annette | C102: =COUNT(E102:AQ102) -> 1 | D102: =SUM(E102:AQ102) -> 225 | H102: 225
A103: " | B103: Barringer, Brian | C103: =COUNT(E103:AQ103) -> 2 | D103: =SUM(E103:AQ103) -> 225 | X103: 105 | AB103: 120
A104: =IF(D104=D102,"""",ROW(A104)-ROW($A$4)) -> " | B104: Deprez, Larry | C104: =COUNT(E104:AQ104) -> 1 | D104: =SUM(E104:AQ104) -> 225 | AA104: 225
A105: =IF(D105=D103,"""",ROW(A105)-ROW($A$4)) -> " | B105: Eckerd, Nancy | C105: =COUNT(E105:AQ105) -> 1 | D105: =SUM(E105:AQ105) -> 225 | H105: 225
A106: " | B106: Lindsay, Ashlyn | C106: =COUNT(E106:AQ106) -> 1 | D106: =SUM(E106:AQ106) -> 225 | S106: 225
A107: 103 | B107: Tauer, Adam | C107: =COUNT(E107:AQ107) -> 1 | D107: =SUM(E107:AQ107) -> 215 | R107: 215
A108: 104 | B108: TAW | C108: =COUNT(E108:AQ108) -> 1 | D108: =SUM(E108:AQ108) -> 214 | AH108: 214
A109: 105 | B109: Britt, Chris | C109: =COUNT(E109:AQ109) -> 1 | D109: =SUM(E109:AQ109) -> 213 | Q109: 213
A110: 106 | B110: C., Don | C110: =COUNT(E110:AQ110) -> 2 | D110: =SUM(E110:AQ110) -> 202.5 | AD110: 150 | AI110: 52.5
A111: 107 | B111: Ashbaugh, D | C111: =COUNT(E111:AQ111) -> 1 | D111: =SUM(E111:AQ111) -> 200 | X111: 200
A112: " | B112: Haag, Larry | C112: =COUNT(E112:AQ112) -> 1 | D112: =SUM(E112:AQ112) -> 200 | X112: 200
A113: " | B113: Lamb, David | C113: =COUNT(E113:AQ113) -> 1 | D113: =SUM(E113:AQ113) -> 200 | S113: 200
A114: " | B114: McVay, Rob | C114: =COUNT(E114:AQ114) -> 1 | D114: =SUM(E114:AQ114) -> 200 | P114: 200
A115: " | B115: Turchin, Kevin | C115: =COUNT(E115:AQ115) -> 1 | D115: =SUM(E115:AQ115) -> 200 | J115: 200
A116: 112 | B116: Baxendell, K. | C116: =COUNT(E116:AQ116) -> 1 | D116: =SUM(E116:AQ116) -> 195 | AI116: 195
A117: " | B117: Campe, G. | C117: =COUNT(E117:AQ117) -> 2 | D117: =SUM(E117:AQ117) -> 195 | AA117: 35 | AI117: 160
A118: 114 | B118: Shuler, Amy | C118: =COUNT(E118:AQ118) -> 1 | D118: =SUM(E118:AQ118) -> 190 | G118: 190
A119: 115 | B119: Mazzeo, John | C119: =COUNT(E119:AQ119) -> 2 | D119: =SUM(E119:AQ119) -> 188 | Z119: 150 | AE119: 38
A120: " | B120: Pannes, Pete | C120: =COUNT(E120:AQ120) -> 1 | D120: =SUM(E120:AQ120) -> 188 | M120: 188
A121: " | B121: Rumora, Frank | C121: =COUNT(E121:AQ121) -> 2 | D121: =SUM(E121:AQ121) -> 188 | Z121: 50 | AF121: 138
A122: 118 | B122: Hartz, Greg | C122: =COUNT(E122:AQ122) -> 2 | D122: =SUM(E122:AQ122) -> 185 | U122: 110 | AB122: 75
A123: 119 | B123: D'Agostino, Shirley | C123: =COUNT(E123:AQ123) -> 2 | D123: =SUM(E123:AQ123) -> 175 | AD123: 50 | AE123: 125
A124: " | B124: DeGennaro, Jim | C124: =COUNT(E124:AQ124) -> 1 | D124: =SUM(E124:AQ124) -> 175 | AD124: 175
A125: " | B125: Hoppner, Pete | C125: =COUNT(E125:AQ125) -> 1 | D125: =SUM(E125:AQ125) -> 175 | AK125: 175
A126: " | B126: Kendrick, Nick | C126: =COUNT(E126:AQ126) -> 1 | D126: =SUM(E126:AQ126) -> 175 | AG126: 175
A127: " | B127: Musso, Cindy | C127: =COUNT(E127:AQ127) -> 1 | D127: =SUM(E127:AQ127) -> 175 | AL127: 175
A128: " | B128: Osier, Jack | C128: =COUNT(E128:AQ128) -> 1 | D128: =SUM(E128:AQ128) -> 175 | Q128: 175
A129: " | B129: Stevens, Thom | C129: =COUNT(E129:AQ129) -> 2 | D129: =SUM(E129:AQ129) -> 175 | AK129: 140 | AM129: 35
A130: 126 | B130: Kendrick, Colin | C130: =COUNT(E130:AQ130) -> 3 | D130: =SUM(E130:AQ130) -> 171.7 | Y130: 130 | AH130: 25 | AJ130: 16.7
A131: 127 | B131: Cupelli, Rochelle | C131: =COUNT(E131:AQ131) -> 1 | D131: =SUM(E131:AQ131) -> 170 | H131: 170
A132: " | B132: VanNevel, Brian | C132: =COUNT(E132:AQ132) -> 1 | D132: =SUM(E132:AQ132) -> 170 | R132: 170
A133: 129 | B133: Sciarratta, Gary | C133: =COUNT(E133:AQ133) -> 2 | D133: =SUM(E133:AQ133) -> 160 | P133: 100 | R133: 60
A134: 130 | B134: Brock, John | C134: =COUNT(E134:AQ134) -> 1 | D134: =SUM(E134:AQ134) -> 155 | G134: 155
A135: " | B135: Kendrick, Lois | C135: =COUNT(E135:AQ135) -> 1 | D135: =SUM(E135:AQ135) -> 155 | AN135: 155
A136: =IF(D136=D135,"""",ROW(A136)-ROW($A$4)) -> " | B136: Lasch, R. | C136: =COUNT(E136:AQ136) -> 1 | D136: =SUM(E136:AQ136) -> 155 | AH136: 155
A137: " | B137: Mahoney, Peter | C137: =COUNT(E137:AQ137) -> 1 | D137: =SUM(E137:AQ137) -> 155 | T137: 155
A138: 134 | B138: Bonanza, N. | C138: =COUNT(E138:AQ138) -> 1 | D138: =SUM(E138:AQ138) -> 150 | AM138: 150
A139: " | B139: Bonsignore, Paul | C139: =COUNT(E139:AQ139) -> 1 | D139: =SUM(E139:AQ139) -> 150 | O139: 150
A140: " | B140: Filiere, Bob | C140: =COUNT(E140:AQ140) -> 1 | D140: =SUM(E140:AQ140) -> 150 | U140: 150
A141: " | B141: Kauffman, Jeannie | C141: =COUNT(E141:AQ141) -> 1 | D141: =SUM(E141:AQ141) -> 150 | AI141: 150
A142: " | B142: Monroe, John D | C142: =COUNT(E142:AQ142) -> 1 | D142: =SUM(E142:AQ142) -> 150 | H142: 150
A143: " | B143: Shooshan, Ryan | C143: =COUNT(E143:AQ143) -> 1 | D143: =SUM(E143:AQ143) -> 150 | N143: 150
A144: " | B144: Wall, Robert | C144: =COUNT(E144:AQ144) -> 1 | D144: =SUM(E144:AQ144) -> 150 | W144: 150
A145: " | B145: Webster, Peter | C145: =COUNT(E145:AQ145) -> 1 | D145: =SUM(E145:AQ145) -> 150 | V145: 150
A146: 142 | B146: Cortese, Ron | C146: =COUNT(E146:AQ146) -> 2 | D146: =SUM(E146:AQ146) -> 143 | AF146: 93 | AG146: 50
A147: 143 | B147: Doel, C. | C147: =COUNT(E147:AQ147) -> 1 | D147: =SUM(E147:AQ147) -> 140 | AH147: 140
A148: " | B148: Lindsay, CJ | C148: =COUNT(E148:AQ148) -> 1 | D148: =SUM(E148:AQ148) -> 140 | S148: 140
A149: 145 | B149: Keenan, Tim | C149: =COUNT(E149:AQ149) -> 1 | D149: =SUM(E149:AQ149) -> 138 | AF149: 138
A150: " | B150: Koch, Jim | C150: =COUNT(E150:AQ150) -> 1 | D150: =SUM(E150:AQ150) -> 138 | AG150: 138
A151: 147 | B151: Milliman, Cathy | C151: =COUNT(E151:AQ151) -> 1 | D151: =SUM(E151:AQ151) -> 135 | W151: 135
A152: 148 | B152: Lottmaier, B. | C152: =COUNT(E152:AQ152) -> 1 | D152: =SUM(E152:AQ152) -> 133 | AJ152: 133
A153: " | B153: McErlain | C153: =COUNT(E153:AQ153) -> 1 | D153: =SUM(E153:AQ153) -> 133 | AJ153: 133
A154: 150 | B154: B., Mike | C154: =COUNT(E154:AQ154) -> 1 | D154: =SUM(E154:AQ154) -> 130 | AI154: 130
A155: " | B155: Bellerose, Jason | C155: =COUNT(E155:AQ155) -> 1 | D155: =SUM(E155:AQ155) -> 130 | AO155: 130
A156: " | B156: Brado, Fritz | C156: =COUNT(E156:AQ156) -> 1 | D156: =SUM(E156:AQ156) -> 130 | X156: 130
A157: " | B157: Clark, Vicki | C157: =COUNT(E157:AQ157) -> 2 | D157: =SUM(E157:AQ157) -> 130 | AD157: 65 | AJ157: 65
A158: " | B158: Greeney, J. | C158: =COUNT(E158:AQ158) -> 1 | D158: =SUM(E158:AQ158) -> 130 | AI158: 130
A159: " | B159: Harris, Scott | C159: =COUNT(E159:AQ159) -> 2 | D159: =SUM(E159:AQ159) -> 130 | AH159: 120 | AK159: 10
A160: " | B160: Isola, Anthony | C160: =COUNT(E160:AQ160) -> 1 | D160: =SUM(E160:AQ160) -> 130 | R160: 130
A161: 157 | B161: Panella, Mike | C161: =COUNT(E161:AQ161) -> 1 | D161: =SUM(E161:AQ161) -> 125 | M161: 125
A162: 158 | B162: Bailey, Tom | C162: =COUNT(E162:AQ162) -> 1 | D162: =SUM(E162:AQ162) -> 123 | F162: 123
A163: " | B163: Ricci, Wendy | C163: =COUNT(E163:AQ163) -> 1 | D163: =SUM(E163:AQ163) -> 123 | F163: 123
A164: " | B164: Rowland, Merri | C164: =COUNT(E164:AQ164) -> 1 | D164: =SUM(E164:AQ164) -> 123 | F164: 123
A165: 161 | B165: B38 DCups | C165: =COUNT(E165:AQ165) -> 1 | D165: =SUM(E165:AQ165) -> 120 | AH165: 120
A166: " | B166: Kauffman, GW | C166: =COUNT(E166:AQ166) -> 1 | D166: =SUM(E166:AQ166) -> 120 | V166: 120
A167: 163 | B167: Nickerson, Dave | C167: =COUNT(E167:AQ167) -> 1 | D167: =SUM(E167:AQ167) -> 119 | Q167: 119
A168: 164 | B168: Wiley, Clayton | C168: =COUNT(E168:AQ168) -> 2 | D168: =SUM(E168:AQ168) -> 115 | AK168: 60 | AO168: 55
A169: 165 | B169: Mercer, Patricia | C169: =COUNT(E169:AQ169) -> 1 | D169: =SUM(E169:AQ169) -> 110 | T169: 110
A170: " | B170: Nadritch, Todd | C170: =COUNT(E170:AQ170) -> 1 | D170: =SUM(E170:AQ170) -> 110 | U170: 110
A171: " | B171: Webster, Sue | C171: =COUNT(E171:AQ171) -> 1 | D171: =SUM(E171:AQ171) -> 110 | T171: 110
A172: 168 | B172: Strickland, Dee | C172: =COUNT(E172:AQ172) -> 1 | D172: =SUM(E172:AQ172) -> 109 | AP172: 109
A173: 169 | B173: DeLoria, Mike | C173: =COUNT(E173:AQ173) -> 1 | D173: =SUM(E173:AQ173) -> 105 | Y173: 105
A174: " | B174: Moore, Bigry | C174: =COUNT(E174:AQ174) -> 1 | D174: =SUM(E174:AQ174) -> 105 | Y174: 105
A175: " | B175: Palazini, Brian | C175: =COUNT(E175:AQ175) -> 1 | D175: =SUM(E175:AQ175) -> 105 | S175: 105
A176: " | B176: Terrana, Joe | C176: =COUNT(E176:AQ176) -> 1 | D176: =SUM(E176:AQ176) -> 105 | AG176: 105
A177: 173 | B177: Barz, Tom | C177: =COUNT(E177:AQ177) -> 1 | D177: =SUM(E177:AQ177) -> 100 | K177: 100
A178: " | B178: Bernacchia, Lou | C178: =COUNT(E178:AQ178) -> 1 | D178: =SUM(E178:AQ178) -> 100 | N178: 100
A179: " | B179: Cuch | C179: =COUNT(E179:AQ179) -> 1 | D179: =SUM(E179:AQ179) -> 100 | W179: 100
A180: " | B180: Kaufman, Randy | C180: =COUNT(E180:AQ180) -> 1 | D180: =SUM(E180:AQ180) -> 100 | E180: 100
A181: " | B181: Kelley, Jim | C181: =COUNT(E181:AQ181) -> 1 | D181: =SUM(E181:AQ181) -> 100 | K181: 100
A182: " | B182: Legg, Bill | C182: =COUNT(E182:AQ182) -> 1 | D182: =SUM(E182:AQ182) -> 100 | AM182: 100
A183: " | B183: Rakoski, Frank | C183: =COUNT(E183:AQ183) -> 1 | D183: =SUM(E183:AQ183) -> 100 | R183: 100
A184: " | B184: Sawyer, Randy | C184: =COUNT(E184:AQ184) -> 1 | D184: =SUM(E184:AQ184) -> 100 | E184: 100
A185: " | B185: Snover, Eileen | C185: =COUNT(E185:AQ185) -> 1 | D185: =SUM(E185:AQ185) -> 100 | I185: 100
A186: " | B186: Spagnolo, J | C186: =COUNT(E186:AQ186) -> 1 | D186: =SUM(E186:AQ186) -> 100 | V186: 100
A187: " | B187: VanOrman, John | C187: =COUNT(E187:AQ187) -> 1 | D187: =SUM(E187:AQ187) -> 100 | AL187: 100
A188: " | B188: Warrick, Mike | C188: =COUNT(E188:AQ188) -> 1 | D188: =SUM(E188:AQ188) -> 100 | AI188: 100
A189: " | B189: Welshoff, Brendan | C189: =COUNT(E189:AQ189) -> 1 | D189: =SUM(E189:AQ189) -> 100 | P189: 100
A190: 186 | B190: Giuffrida, Ron | C190: =COUNT(E190:AQ190) -> 1 | D190: =SUM(E190:AQ190) -> 97.5 | AC190: 97.5
A191: 187 | B191: White, Donna | C191: =COUNT(E191:AQ191) -> 2 | D191: =SUM(E191:AQ191) -> 91.5 | AC191: 57.5 | AF191: 34
A192: 188 | B192: Jackson, Tom | C192: =COUNT(E192:AQ192) -> 1 | D192: =SUM(E192:AQ192) -> 90 | AI192: 90
A193: " | B193: Paul2 | C193: =COUNT(E193:AQ193) -> 1 | D193: =SUM(E193:AQ193) -> 90 | AD193: 90
A194: " | B194: Polisseni, Bob | C194: =COUNT(E194:AQ194) -> 2 | D194: =SUM(E194:AQ194) -> 90 | Z194: 80 | AK194: 10
A195: " | B195: Prichard,Tyler | C195: =COUNT(E195:AQ195) -> 1 | D195: =SUM(E195:AQ195) -> 90 | Y195: 90
A196: " | B196: Rathbun, Paul | C196: =COUNT(E196:AQ196) -> 1 | D196: =SUM(E196:AQ196) -> 90 | AG196: 90
A197: " | B197: Roesch, Rick | C197: =COUNT(E197:AQ197) -> 1 | D197: =SUM(E197:AQ197) -> 90 | X197: 90
A198: 194 | B198: Barb | C198: =COUNT(E198:AQ198) -> 1 | D198: =SUM(E198:AQ198) -> 85 | AE198: 85
A199: " | B199: Klips, J. | C199: =COUNT(E199:AQ199) -> 1 | D199: =SUM(E199:AQ199) -> 85 | AJ199: 85
A200: =IF(D200=D199,"""",ROW(A200)-ROW($A$4)) -> " | B200: Roe | C200: =COUNT(E200:AQ200) -> 1 | D200: =SUM(E200:AQ200) -> 85 | AE200: 85
... 54 more rows
